fUSD/lending_fUSD_20251123
["ID","MTS","AMOUNT","RATE_DAILY","PERIOD"]
[394704436,1763907056279,-501.15962009,0.00038356,8]
[394704437,1763907056289,-1521.67,0.00038356,8]
[394704438,1763907056299,-620.29963898,0.00038356,8]
[394704439,1763907056308,-1127.51,0.00038356,8]
[394704440,1763907056317,-500.0,0.00038356,8]
[394704441,1763907056327,-500.0,0.00038356,8]
[394704442,1763907056337,-500.0,0.00038356,8]
[394704443,1763907056346,-503.74487537,0.00038356,8]
[394704444,1763907056355,-1870.47,0.00038356,8]
[394704445,1763907056364,-500.0,0.00038356,8]
[394704446,1763907056373,-615.50546878,0.00038356,8]
[394704447,1763907056382,-500.0,0.00038356,8]
[394704448,1763907056392,-500.0,0.00038356,8]
[394704449,1763907056401,-500.0,0.00038356,8]
[394704450,1763907056410,-701.4,0.00038356,8]
[394704451,1763907056419,-1046.64,0.00038356,8]
[394704452,1763907056429,-500.0,0.00038356,8]
[394704453,1763907056438,-500.0,0.00038356,8]
[394704454,1763907056447,-501.66624244,0.00038356,8]
[394704455,1763907056456,-184.84391968,0.00038356,8]
[394704456,1763907056465,-629.9,0.00038356,8]
[394704457,1763907056475,-500.0,0.00038356,8]
[394704458,1763907056485,-500.0,0.00038356,8]
[394704459,1763907056494,-900.71,0.00038356,8]
[394704460,1763907056503,-500.0,0.00038356,8]
[394704461,1763907056512,-1409.52,0.00038356,8]
[394704462,1763907056521,-500.0,0.00038356,8]
[394704463,1763907056530,-440.04183656,0.00038356,8]
[394704464,1763907056540,-500.0,0.00038356,8]
[394704465,1763907056550,-500.0,0.00038356,8]
[394704466,1763907056560,-552.6342176,0.00038356,8]
[394704467,1763907056569,-500.0,0.00038356,8]
[394704468,1763907056578,-536.68,0.00038356,8]
[394704469,1763907056587,-500.0,0.00038356,8]
[394704470,1763907056597,-500.0,0.00038356,8]
[394704471,1763907056606,-906.74,0.00038356,8]
[394704472,1763907056615,-500.0,0.00038356,8]
[394704473,1763907056624,-500.0,0.00038356,8]
[394704474,1763907056634,-500.0,0.00038356,8]
[394704475,1763907056643,-500.0,0.00038356,8]
[394704476,1763907056652,-503.97450835,0.00038356,8]
[394704477,1763907056661,-631.98,0.00038356,8]
[394704478,1763907056671,-500.0,0.00038356,8]
[394704479,1763907056680,-556.39,0.00038356,8]
[394704480,1763907056689,-500.0,0.00038356,8]
[394704481,1763907056698,-500.0,0.00038356,8]
[394704482,1763907056707,-500.0,0.00038356,8]
[394704483,1763907056717,-500.0,0.00038356,8]
[394704484,1763907056726,-586.89378028,0.00038356,8]
[394704485,1763907056736,-500.0,0.00038356,8]
[394704486,1763907056746,-500.0,0.00038356,8]
[394704487,1763907056756,-857.41,0.00038356,8]
[394704488,1763907056765,-500.0,0.00038356,8]
[394704489,1763907056774,-950.34,0.00038356,8]
[394704490,1763907056783,-500.0,0.00038356,8]
[394704491,1763907056793,-500.0,0.00038356,8]
[394704492,1763907056802,-500.0,0.00038356,8]
[394704493,1763907056811,-500.0,0.00038356,8]
[394704494,1763907056820,-500.0,0.00038356,8]
[394704495,1763907056829,-500.0,0.00038356,8]
[394704496,1763907056838,-623.31,0.00038356,8]
[394704497,1763907056847,-500.0,0.00038356,8]
[394704498,1763907056856,-500.0,0.00038356,8]
[394704499,1763907056866,-500.0,0.00038356,8]
[394704500,1763907056876,-500.0,0.00038356,8]
[394704501,1763907056885,-500.0,0.00038356,8]
[394704502,1763907056895,-517.99034922,0.00038356,8]
[394704503,1763907056904,-500.0,0.00038356,8]
[394704504,1763907056914,-500.0,0.00038356,8]
[394704505,1763907056924,-500.0,0.00038356,8]
[394704506,1763907056937,-500.0,0.00038356,8]
[394704507,1763907056946,-871.93,0.00038356,8]
[394704508,1763907056956,-660.51,0.00038356,2]
[394704509,1763907056966,-500.0,0.00038356,8]
[394704510,1763907056976,-500.0,0.00038356,8]
[394704511,1763907056986,-597.91,0.00038356,8]
[394704512,1763907056995,-500.0,0.00038356,8]
[394704513,1763907057006,-500.0,0.00038356,8]
[394704514,1763907057015,-540.7908232,0.00038356,8]
[394704515,1763907057025,-500.0,0.00038356,8]
[394704516,1763907057033,-575.79,0.00038356,8]
[394704517,1763907057043,-500.0,0.00038356,8]
[394704518,1763907057052,-500.0,0.00038356,8]
[394704519,1763907057063,-500.0,0.00038356,8]
[394704520,1763907057072,-478.99303774,0.00038356,8]
[394704521,1763907057081,-500.0,0.00038356,8]
[394704522,1763907057090,-1000.0,0.00038356,8]
[394704523,1763907057099,-500.0,0.00038356,8]
[394704524,1763907057109,-532.13,0.00038356,8]
[394704525,1763907057118,-500.0,0.00038356,8]
[394704526,1763907057127,-500.0,0.00038356,8]
[394704527,1763907057137,-695.48,0.00038356,8]
[394704528,1763907057146,-500.0,0.00038356,8]
[394704529,1763907057155,-585.6555336,0.00038356,8]
[394704530,1763907057165,-500.0,0.00038356,8]
[394704531,1763907057175,-551.07,0.00038356,8]
[394704532,1763907057185,-500.0,0.00038356,8]
[394704533,1763907057195,-718.59,0.00038356,8]
[394704534,1763907057204,-362.4908447,0.00038356,8]
[394704535,1763907057214,-990.78,0.00038356,8]
[394704536,1763907057224,-500.0,0.00038356,8]
[394704537,1763907057235,-578.20501708,0.00038356,8]
[394704538,1763907057245,-526.35,0.00038356,8]
[394704539,1763907057255,-507.91258945,0.00038356,8]
[394704540,1763907057266,-500.0,0.00038356,8]
[394704541,1763907057275,-582.61,0.00038356,8]
[394704542,1763907057285,-500.0,0.00038356,8]
[394704543,1763907057295,-500.0,0.00038356,8]
[394704544,1763907057304,-500.0,0.00038356,8]
[394704545,1763907057315,-500.0,0.00038356,8]
[394704546,1763907057326,-826.77,0.00038356,8]
[394704547,1763907057335,-500.0,0.00038356,2]
[394704548,1763907057345,-500.0,0.00038356,8]
[394704549,1763907057354,-494.15374826,0.00038356,8]
[394704550,1763907057364,-500.0,0.00038356,8]
[394704551,1763907057373,-500.0,0.00038356,8]
[394704552,1763907057382,-500.0,0.00038356,8]
[394704553,1763907057392,-500.0,0.00038356,8]
[394704554,1763907057401,-500.0,0.00038356,8]
[394704555,1763907057411,-500.0,0.00038356,8]
[394704556,1763907057420,-500.0,0.00038356,8]
[394704557,1763907057429,-500.0,0.00038356,8]
[394704558,1763907057438,-865.03,0.00038356,8]
[394704559,1763907057448,-500.0,0.00038356,8]
[394704560,1763907057457,-509.01435933,0.00038356,8]
[394704561,1763907057466,-500.0,0.00038356,8]
[394704562,1763907057476,-500.0,0.00038356,8]
[394704563,1763907057486,-500.0,0.00038356,8]
[394704564,1763907057495,-500.0,0.00038356,8]
[394704565,1763907057505,-500.0,0.00038356,8]
[394704566,1763907057514,-587.78842837,0.00038356,8]
[394704567,1763907057523,-500.0,0.00038356,8]
[394704568,1763907057533,-500.0,0.00038356,8]
[394704569,1763907057542,-505.85810986,0.00038356,8]
[394704570,1763907057552,-500.0,0.00038356,8]
[394704571,1763907057561,-502.31076942,0.00038356,8]
[394704572,1763907057571,-500.0,0.00038356,8]
[394704573,1763907057580,-500.0,0.00038356,8]
[394704574,1763907057590,-535.2523259,0.00038356,8]
[394704575,1763907057599,-500.0,0.00038356,8]
[394704576,1763907057608,-500.0,0.00038356,8]
[394704577,1763907057617,-514.50649871,0.00038356,8]
[394704578,1763907057627,-707.7,0.00038356,8]
[394704579,1763907057636,-500.0,0.00038356,8]
[394704580,1763907057646,-500.0,0.00038356,8]
[394704581,1763907057656,-500.0,0.00038356,8]
[394704582,1763907057666,-662.94,0.00038356,8]
[394704583,1763907057676,-639.43,0.00038356,8]
[394704584,1763907057685,-500.0,0.00038356,8]
[394704585,1763907057694,-500.0,0.00038356,8]
[394704586,1763907057703,-504.71256825,0.00038356,8]
[394704587,1763907057714,-500.0,0.00038356,8]
[394704588,1763907057724,-500.0,0.00038356,8]
[394704589,1763907057735,-500.0,0.00038356,8]
[394704590,1763907057745,-500.0,0.00038356,8]
[394704591,1763907057754,-500.0,0.00038356,8]
[394704592,1763907057764,-500.0,0.00038356,8]
[394704593,1763907057774,-511.19491152,0.00038356,8]
[394704594,1763907057783,-500.0,0.00038356,8]
[394704595,1763907057792,-500.0,0.00038356,8]
[394704596,1763907057802,-500.0,0.00038356,8]
[394704597,1763907057811,-500.0,0.00038356,8]
[394704598,1763907057821,-375.17140115,0.00038356,2]
[394704599,1763907057831,-150.0,0.00038356,5]
[394704600,1763907057840,-307.49644611,0.00038373,5]
[394704601,1763907057850,-501.64508704,0.00038373,5]
[394704602,1763907057860,-500.27274468,0.00038373,5]
[394704603,1763907057870,-500.57621506,0.00038373,5]
[394704604,1763907057880,-500.0,0.00038373,5]
[394704605,1763907057890,-326.52315615,0.00038373,5]
[394704606,1763907057900,-502.09770502,0.00038373,5]
[394704607,1763907057909,-498.95764127,0.00038373,5]
[394704608,1763907057919,-500.45067972,0.00038373,5]
[394704609,1763907057933,-500.0,0.00038373,5]
[394704610,1763907057943,-502.35726483,0.00038373,5]
[394704611,1763907057952,-500.0,0.00038373,5]
[394704612,1763907057961,-500.0,0.00038373,5]
[394704613,1763907057972,-500.0,0.00038373,5]
[394704614,1763907057981,-500.0,0.00038373,5]
[394704615,1763907057991,-464.03446994,0.00038393,15]
[394704616,1763907058000,-1340.0,0.00038461,20]
[394704617,1763907058011,-300.0,0.00038629,10]
[394704618,1763907058021,-160.962503,0.0003863,8]
[394704619,1763907058030,-669.704569,0.0003863,8]
[394704620,1763907058040,-500.0,0.0003863,8]
[394704621,1763907058050,-500.0,0.0003863,8]
[394704622,1763907058059,-283.620263,0.0003863,8]
[394704623,1763907058068,-500.0,0.0003863,8]
[394704624,1763907058077,-500.0,0.0003863,8]
[394704625,1763907058086,-500.0,0.0003863,8]
[394704626,1763907058095,-500.0,0.0003863,8]
[394704627,1763907058105,-500.0,0.0003863,8]
[394704628,1763907058114,-500.0,0.0003863,8]
[394704629,1763907058123,-500.0,0.0003863,8]
[394704630,1763907058133,-500.0,0.0003863,8]
[394704631,1763907058142,-68.01341707,0.0003863,2]
[394704632,1763907058502,-375.0291612,0.0003863,2]
[394704633,1763907058513,-56.95742173,0.0003863,2]
[394704634,1763907058523,-466.39319027,0.0003863,8]
[394704635,1763907058558,-500.0,0.00038356,8]
[394704636,1763907058568,-33.60680973,0.0003863,8]
[394704637,1763907058578,-500.0,0.0003863,8]
[394704638,1763907058587,-500.0,0.0003863,8]
[394704639,1763907058597,-500.0,0.0003863,8]
[394704640,1763907058607,-500.0,0.0003863,8]
[394704641,1763907058617,-500.0,0.0003863,8]
[394704642,1763907058626,-500.0,0.0003863,8]
[394704643,1763907058636,-500.0,0.0003863,8]
[394704644,1763907058645,-500.0,0.0003863,8]
[394704645,1763907058654,-500.0,0.0003863,8]
[394704646,1763907058664,-676.62308329,0.0003863,8]
[394704647,1763907058676,-4.67691671,0.0003863,8]
[394704648,1763907058685,-500.0,0.0003863,8]
[394704649,1763907058694,-435.00891791,0.0003863,8]
[394704650,1763907058703,-500.0,0.0003863,8]
[394704651,1763907058712,-310.63987397,0.0003863,8]
[394704652,1763907059098,755.1665563,0.00016561,2]
[394704653,1763907086442,500.0,0.00016454,2]
[394704654,1763907086672,530.31019318,0.00016592,2]
[394704656,1763907195871,-500.0,0.00016897,2]
[394704684,1763907715099,191.02,0.00016845,2]
[394704692,1763908012471,8808.99,0.000162,5]
[394704693,1763908012496,10000.01,0.000162,5]
[394704694,1763908012520,10000.01,0.000162,5]
[394704695,1763908012545,10000.01,0.000162,5]
[394704696,1763908012569,10000.01,0.000162,5]
[394704697,1763908012594,10000.01,0.000162,5]
[394704698,1763908012618,10000.01,0.000162,5]
[394704699,1763908012643,10000.01,0.000162,5]
[394704700,1763908012678,10000.01,0.000162,5]
[394704701,1763908012706,10000.01,0.000162,5]
[394704702,1763908022973,-550.0,0.00016199,2]
[394704703,1763908025731,-5190.08442238,0.000162,5]
[394704704,1763908025794,-10000.01,0.000162,5]
[394704705,1763908025924,-10000.01,0.000162,5]
[394704706,1763908026043,-10000.01,0.000162,5]
[394704707,1763908026185,-10000.01,0.000162,5]
[394704708,1763908026288,-10000.01,0.000162,5]
[394704709,1763908026424,-10000.01,0.000162,5]
[394704710,1763908028459,-10000.01,0.000162,5]
[394704711,1763908028575,-10000.01,0.000162,5]
[394704712,1763908028741,-10000.01,0.000162,5]
[394704739,1763908044092,-10000.01,0.000162,5]
[394704740,1763908044151,-10000.01,0.000162,5]
[394704741,1763908044198,-10000.01,0.000162,5]
[394704742,1763908049645,-4587.94443108,0.000162,5]
[394704743,1763908049675,-250.0,0.00016759,2]
[394704745,1763908103089,324.12113784,0.00015,4]
[394704746,1763908103114,10000.01,0.00015,4]
[394704747,1763908103140,10000.01,0.00015,4]
[394704748,1763908103168,278.58975483,0.00015,4]
[394704749,1763908112610,9721.42024517,0.00016,4]
[394704750,1763908112637,10000.01,0.00016,4]
[394704751,1763908112665,10000.01,0.00016,4]
[394704752,1763908112691,10000.01,0.00016,4]
[394704753,1763908112717,10000.01,0.00016,4]
[394704754,1763908112743,10000.01,0.00016,4]
[394704755,1763908112769,10000.01,0.00016,4]
[394704756,1763908112798,10000.01,0.00016,4]
[394704757,1763908112825,10000.01,0.00016,4]
[394704758,1763908112851,10000.01,0.00016,4]
[394704759,1763908132120,-9675.88886216,0.00016,4]
[394704760,1763908132233,-10000.01,0.00016,4]
[394704761,1763908132360,-10000.01,0.00016,4]
[394704762,1763908132481,-10000.01,0.00016,4]
[394704763,1763908132608,-10000.01,0.00016,4]
[394704764,1763908132739,-10000.01,0.00016,4]
[394704765,1763908132867,-10000.01,0.00016,4]
[394704766,1763908134665,-10000.01,0.00016,4]
[394704767,1763908134867,-10000.01,0.00016,4]
[394704768,1763908143767,-300.0,0.00015999,2]
[394704769,1763908143818,-9400.01,0.00016,4]
[394704770,1763908143894,-10000.01,0.00016,4]
[394704771,1763908144019,-10000.01,0.00016,4]
[394704772,1763908144145,-10000.01,0.00016,4]
[394704773,1763908144259,-10000.01,0.00016,4]
[394704774,1763908144412,-10000.01,0.00016,4]
[394704775,1763908144534,-10000.01,0.00016,4]
[394704776,1763908150084,-300.0,0.00016,2]
[394704777,1763908150166,-9400.01,0.00016,4]
[394704778,1763908150542,-10000.01,0.00016,4]
[394704779,1763908155891,-10000.01,0.00016,4]
[394704780,1763908156033,-10000.01,0.00016,4]
[394704781,1763908159274,-10000.01,0.00016,4]
[394704782,1763908159501,-10000.01,0.00016,4]
[394704783,1763908160250,-10000.01,0.00016,4]
[394704784,1763908160272,-10000.01,0.00016,4]
[394704785,1763908160296,-10000.01,0.00016,4]
[394704787,1763908162006,-10000.01,0.00016,4]
[394704788,1763908162166,-10000.01,0.00016,4]
[394704789,1763908162317,-10000.01,0.00016,4]
[394704790,1763908177360,-10000.01,0.00016,4]
[394704791,1763908177567,-10000.01,0.00016,4]
[394704792,1763908177727,-10000.01,0.00016,4]
[394704793,1763908177862,-10000.01,0.00016,4]
[394704794,1763908180122,-10000.01,0.00016,4]
[394704795,1763908180249,-10000.01,0.00016,4]
[394704796,1763908183188,-1330.17918608,0.00015984,2]
[394704797,1763908183227,-7339.65162784,0.00016,4]
[394704798,1763908183313,-10000.01,0.00016,4]
[394704799,1763908188387,-10000.01,0.00016,4]
[394704800,1763908188559,-10000.01,0.00016,4]
[394704801,1763908189363,-10000.01,0.00016,4]
[394704802,1763908192283,-10000.01,0.00016,4]
[394704803,1763908192417,-10000.01,0.00016,4]
[394704804,1763908192538,-10000.01,0.00016,4]
[394704805,1763908192704,-10000.01,0.00016,4]
[394704806,1763908196248,-10000.01,0.00016,4]
[394704807,1763908198332,-10000.01,0.00016,4]
[394704808,1763908198788,-10000.01,0.00016,4]
[394704809,1763908198836,-10000.01,0.00016,4]
[394704810,1763908198851,-10000.01,0.00016,4]
[394704811,1763908201399,-10000.01,0.00016,4]
[394704812,1763908219587,-2637.74,0.0001599,2]
[394704813,1763908219611,-4724.53,0.0001599,2]
[394704814,1763908219825,-2637.74,0.0001599,2]
[394704815,1763908219849,-4724.53,0.0001599,2]
[394704816,1763908219967,-151.0,0.00015997,2]
[394704817,1763908219998,-1200.0,0.00015999,2]
[394704818,1763908220028,-300.0,0.00015999,2]
[394704819,1763908220058,-300.0,0.00015999,2]
[394704820,1763908220088,-300.0,0.00015999,2]
[394704821,1763908220118,-300.0,0.00015999,2]
[394704822,1763908220328,-4898.01,0.00016,4]
[394704823,1763908220627,-10000.01,0.00016,4]
[394704824,1763908223033,-10000.01,0.00016,4]
[394704825,1763908231571,-10000.01,0.00016,4]
[394704826,1763908231710,-10000.01,0.00016,4]
[394704827,1763908231911,-10000.01,0.00016,4]
[394704828,1763908231965,-10000.01,0.00016,4]
[394704832,1763908232156,-123332.21159023,0.00016,4]
[394704834,1763908232168,-27147.67940713,0.00016,4]
[394704843,1763908232257,-9639.70026846,0.00016,4]
[394704844,1763908232375,-1727.26703663,0.00016,4]
[394704845,1763908232388,-500.0,0.00016,4]
[394704846,1763908232399,-410.433,0.00016,4]
[394704847,1763908232410,-955.04341264,0.00016,4]
[394704848,1763908232421,-1472.73296337,0.00016,4]
[394704853,1763908238276,-7492.69674243,0.00015909,2]
[394704854,1763908238286,-20805.99075632,0.00016,4]
[394704855,1763908238297,-672.36545114,0.00016,4]
[394704856,1763908238651,-581126.79525886,0.00016,4]
[394704857,1763908238661,-191.46702448,0.00016009,2]
[394704858,1763908238670,-635.15435128,0.00016009,2]
[394704859,1763908238680,-7492.69674239,0.00016019,2]
[394704860,1763908238690,-151.52699661,0.00016109,2]
[394704861,1763908238699,-195.0,0.00016209,2]
[394704862,1763908238709,-3572.22934384,0.00016418,2]
[394704863,1763908238719,-6737.06,0.00016438,2]
[394704864,1763908238728,-163.74,0.0001644,2]
[394704865,1763908238738,-195.0,0.00016552,2]
[394704866,1763908238747,-1000.0,0.000169,2]
[394704867,1763908238757,-224.7286924,0.00016903,2]
[394704868,1763908238766,-1261.30601437,0.00016903,2]
[394704869,1763908238776,-554.33256875,0.00016903,2]
[394704870,1763908238786,-500.57212574,0.00016973,2]
[394704871,1763908238795,-500.0,0.00016973,2]
[394704872,1763908238805,-500.0,0.00016973,2]
[394704873,1763908238815,-500.0,0.00016973,2]
[394704874,1763908238825,-161.29036105,0.00016973,2]
[394704875,1763908238834,-501.18923023,0.00016973,2]
[394704876,1763908238843,-500.0,0.00016973,2]
[394704877,1763908238853,-500.0,0.00016973,2]
[394704878,1763908238862,-500.0,0.00016973,2]
[394704879,1763908238871,-601.2617969,0.00016973,2]
[394704880,1763908238880,-500.0,0.00016973,2]
[394704881,1763908238890,-275.15105889,0.00016973,2]
[394704882,1763908238899,-500.0,0.00016973,2]
[394704883,1763908238909,-500.0,0.00016973,2]
[394704884,1763908238920,-501.83220952,0.00016973,2]
[394704885,1763908238931,-500.0,0.00016973,2]
[394704886,1763908238941,-200.7144154,0.00016973,2]
[394704887,1763908238951,-500.81923454,0.00016973,2]
[394704888,1763908238961,-1533.50860983,0.0001699,2]
[394704889,1763908238971,-1533.50860983,0.0001699,2]
[394704890,1763908238980,-1533.50860983,0.0001699,2]
[394704891,1763908238990,-151.0,0.00016997,2]
[394704892,1763908238999,-300.0,0.00016999,2]
[394704893,1763908239010,-300.0,0.00016999,2]
[394704894,1763908239020,-395.56397861,0.00016999,2]
[394704895,1763908239031,-567.82700031,0.00016999,2]
[394704896,1763908239041,-500.0,0.00016999,2]
[394704897,1763908239051,-513.7465245,0.00016999,2]
[394704898,1763908239061,-500.0,0.00016999,2]
[394704899,1763908239072,-500.0,0.00016999,2]
[394704900,1763908239082,-500.0,0.00016999,2]
[394704901,1763908239092,-500.0,0.00016999,2]
[394704902,1763908239102,-500.0,0.00016999,2]
[394704903,1763908239111,-277.34399047,0.00016999,2]
[394704904,1763908239122,-500.0,0.00016999,2]
[394704905,1763908239132,-500.0,0.00016999,2]
[394704906,1763908239141,-500.0,0.00016999,2]
[394704907,1763908239152,-500.0,0.00016999,2]
[394704908,1763908239161,-500.0,0.00016999,2]
[394704909,1763908239172,-500.0,0.00016999,2]
[394704910,1763908239182,-500.0,0.00016999,2]
[394704911,1763908239192,-500.0,0.00016999,2]
[394704912,1763908239201,-500.0,0.00016999,2]
[394704913,1763908239211,-500.0,0.00016999,2]
[394704914,1763908239223,-500.0,0.00016999,2]
[394704915,1763908239233,-500.0,0.00016999,2]
[394704916,1763908239243,-500.0,0.00016999,2]
[394704917,1763908239252,-500.0,0.00016999,2]
[394704918,1763908239262,-500.0,0.00016999,2]
[394704919,1763908239271,-500.0,0.00016999,2]
[394704920,1763908239282,-500.0,0.00016999,2]
[394704921,1763908239292,-500.0,0.00016999,2]
[394704922,1763908239302,-500.0,0.00016999,2]
[394704923,1763908239315,-500.0,0.00016999,2]
[394704924,1763908239326,-500.0,0.00016999,2]
[394704925,1763908239336,-500.0,0.00016999,2]
[394704926,1763908239345,-500.0,0.00016999,2]
[394704927,1763908239356,-500.0,0.00016999,2]
[394704928,1763908239367,-500.0,0.00016999,2]
[394704929,1763908239376,-500.0,0.00016999,2]
[394704930,1763908239385,-500.0,0.00016999,2]
[394704931,1763908239395,-500.0,0.00016999,2]
[394704932,1763908239406,-486.71780253,0.00016999,2]
[394704933,1763908239415,-500.0,0.00016999,2]
[394704934,1763908239425,-500.0,0.00016999,2]
[394704935,1763908239435,-500.0,0.00016999,2]
[394704936,1763908239443,-500.0,0.00016999,2]
[394704937,1763908239453,-500.0,0.00016999,2]
[394704938,1763908239463,-500.0,0.00016999,2]
[394704939,1763908239473,-500.0,0.00016999,2]
[394704940,1763908239483,-500.0,0.00016999,2]
[394704941,1763908239492,-500.0,0.00016999,2]
[394704942,1763908239502,-450.0,0.00016999,2]
[394704943,1763908239512,-500.0,0.00016999,2]
[394704944,1763908239521,-500.0,0.00016999,2]
[394704945,1763908239532,-500.0,0.00016999,2]
[394704946,1763908239542,-500.0,0.00016999,2]
[394704947,1763908239551,-1768469.67403561,0.00017,2]
[394704950,1763908240288,-3323676.74014328,0.00017,2]
[394704951,1763908240472,-1384.14441634,0.00017,2]
[394704979,1763908244879,-279.3450855,0.0001613,2]
[394704980,1763908245252,-7213.35165689,0.0001613,2]
[394704981,1763908245263,-500.0,0.00016999,2]
[394704982,1763908245273,-500.0,0.00016999,2]
[394704983,1763908245285,-500.0,0.00016999,2]
[394704984,1763908245295,-500.0,0.00016999,2]
[394704985,1763908245304,-500.0,0.00016999,2]
[394704986,1763908245315,-331863.98067067,0.00017,2]
[394704987,1763908245328,-352.0844,0.00017,2]
[394704993,1763908246310,-500.0,0.00016999,2]
[394704994,1763908246323,-500.0,0.00016999,2]
[394704995,1763908246333,-500.0,0.00016999,2]
[394704996,1763908246342,-500.0,0.00016999,2]
[394704997,1763908246352,-468.30539352,0.00016999,2]
[394704998,1763908246363,-43.85425648,0.00016999,2]
[394704999,1763908267987,1531.193044,7.945e-05,2]
[394705000,1763908310645,-1168.384006,0.00015829,2]
[394705001,1763908310684,-6132.048944,0.00015829,2]
[394705002,1763908310854,-1531.193044,0.00015829,2]
[394705003,1763908310887,-195.0,0.00015869,2]
[394705004,1763908310918,-391.47172431,0.00015953,2]
[394705005,1763908310951,-300.0,0.00015998,2]
[394705006,1763908310988,-680.52246338,0.00015998,2]
[394705007,1763908311123,-3803.63553662,0.00015998,2]
[394705008,1763908311156,-327.259,0.00015998,2]
[394705009,1763908311187,-500.67542342,0.00015999,2]
[394705010,1763908311223,-236.87007992,0.00015999,2]
[394705011,1763908311291,-263.12992008,0.00015999,2]
[394705012,1763908311325,-276.89478503,0.00015999,2]
[394705013,1763908311362,-397.47890022,0.00015999,2]
[394705014,1763908311393,-500.0,0.00015999,2]
[394705015,1763908311426,-163.14504372,0.00015999,2]
[394705016,1763908311466,-500.0,0.00015999,2]
[394705017,1763908311502,-500.0,0.00015999,2]
[394705018,1763908311538,-500.0,0.00015999,2]
[394705019,1763908311574,-500.0,0.00015999,2]
[394705020,1763908311610,-500.0,0.00015999,2]
[394705021,1763908311646,-500.0,0.00015999,2]
[394705022,1763908311682,-298.7127019,0.00015999,2]
[394705023,1763908311911,-201.2872981,0.00015999,2]
[394705024,1763908311948,-500.0,0.00015999,2]
[394705025,1763908311985,-500.0,0.00015999,2]
[394705026,1763908312022,-500.0,0.00015999,2]
[394705027,1763908312060,-500.0,0.00015999,2]
[394705028,1763908312099,-500.0,0.00015999,2]
[394705029,1763908312135,-500.0,0.00015999,2]
[394705030,1763908312186,-500.0,0.00015999,2]
[394705031,1763908312227,-500.0,0.00015999,2]
[394705032,1763908312266,-500.0,0.00015999,2]
[394705033,1763908312304,-97.4354038,0.00015999,2]
[394705034,1763908312507,-402.5645962,0.00015999,2]
[394705035,1763908312544,-500.0,0.00015999,2]
[394705036,1763908312581,-500.0,0.00015999,2]
[394705037,1763908312617,-500.0,0.00015999,2]
[394705038,1763908312653,-500.0,0.00015999,2]
[394705039,1763908312693,-500.0,0.00015999,2]
[394705040,1763908312730,-500.0,0.00015999,2]
[394705041,1763908312768,-500.0,0.00015999,2]
[394705042,1763908312805,-500.0,0.00015999,2]
[394705043,1763908312842,-500.0,0.00015999,2]
[394705044,1763908313835,-201.2872981,0.00015999,2]
[394705045,1763908313870,-298.7127019,0.00015999,2]
[394705046,1763908313880,-201.2872981,0.00015999,2]
[394705047,1763908313902,-298.7127019,0.00015999,2]
[394705048,1763908313912,-201.2872981,0.00015999,2]